fUSD/lending_fUSD_20250526
["ID","MTS","AMOUNT","RATE_DAILY","PERIOD"]
[362377010,1748230241533,-420.0,0.00019899,2]
[362377011,1748230241542,-420.0,0.00019899,2]
[362377012,1748230241551,-456.47823166,0.00019899,2]
[362377013,1748230241561,-420.0,0.00019899,2]
[362377014,1748230241570,-420.0,0.00019899,2]
[362377015,1748230241580,-420.0,0.00019899,2]
[362377016,1748230241591,-524.45347996,0.00019899,2]
[362377017,1748230241602,-411.72919124,0.00019899,2]
[362377018,1748230241612,-420.0,0.00019899,2]
[362377019,1748230241623,-420.0,0.00019899,2]
[362377020,1748230241633,-420.0,0.00019899,2]
[362377021,1748230241641,-184.29186443,0.00019899,2]
[362377022,1748230241652,-420.0,0.00019899,2]
[362377023,1748230241662,-420.0,0.00019899,2]
[362377024,1748230241672,-420.0,0.00019899,2]
[362377025,1748230241684,-420.0,0.00019899,2]
[362377026,1748230241693,-420.0,0.00019899,2]
[362377027,1748230241702,-420.0,0.00019899,2]
[362377028,1748230241713,-434.50038622,0.00019899,2]
[362377029,1748230241722,-420.0,0.00019899,2]
[362377030,1748230241731,-420.0,0.00019899,2]
[362377031,1748230241740,-356.92,0.00019899,2]
[362377032,1748230241749,-420.0,0.00019899,2]
[362377033,1748230241759,-420.0,0.00019899,2]
[362377034,1748230241770,-420.0,0.00019899,2]
[362377035,1748230241781,-464.45881157,0.00019899,2]
[362377036,1748230241791,-481.86219895,0.00019899,2]
[362377037,1748230241801,-463.46534957,0.00019899,2]
[362377038,1748230241811,-420.0,0.00019899,2]
[362377039,1748230241823,-449.59392078,0.00019899,2]
[362377040,1748230241833,-502.42715267,0.00019899,2]
[362377041,1748230241843,-420.0,0.00019899,2]
[362377042,1748230241853,-408.93,0.00019899,2]
[362377043,1748230241863,-560.98886391,0.00019899,2]
[362377044,1748230241874,-420.0,0.00019899,2]
[362377045,1748230241884,-420.0,0.00019899,2]
[362377046,1748230241894,-224.36871738,0.00019899,2]
[362377047,1748230241905,-392.94,0.00019899,2]
[362377048,1748230241915,-420.0,0.00019899,2]
[362377049,1748230241926,-420.0,0.00019899,2]
[362377050,1748230241937,-420.0,0.00019899,2]
[362377051,1748230241948,-420.0,0.00019899,2]
[362377052,1748230241957,-461.50613897,0.00019899,2]
[362377053,1748230241967,-420.0,0.00019899,2]
[362377054,1748230241977,-198.39384214,0.00019899,2]
[362377055,1748230241987,-267.70697795,0.00019899,2]
[362377056,1748230241997,-420.0,0.00019899,2]
[362377057,1748230242007,-265.84196913,0.00019899,2]
[362377058,1748230242016,-421.85709769,0.00019899,2]
[362377059,1748230242025,-420.0,0.00019899,2]
[362377060,1748230242034,-420.0,0.00019899,2]
[362377061,1748230242044,-446.28407643,0.00019899,2]
[362377062,1748230242053,-282.55274384,0.00019899,2]
[362377063,1748230242063,-420.0,0.00019899,2]
[362377064,1748230242073,-196.03576733,0.00019899,2]
[362377065,1748230242083,-466.10392764,0.00019899,2]
[362377066,1748230242092,-472.39844073,0.00019899,2]
[362377067,1748230242101,-456.62684503,0.00019899,2]
[362377068,1748230242111,-457.8777064,0.00019899,2]
[362377069,1748230242120,-556.96490905,0.00019899,2]
[362377070,1748230242129,-453.63764405,0.00019899,2]
[362377071,1748230242139,-420.0,0.00019899,2]
[362377072,1748230242149,-450.76092007,0.00019899,2]
[362377073,1748230242158,-420.0,0.00019899,2]
[362377074,1748230242168,-474.57462915,0.00019899,2]
[362377075,1748230242177,-379.81835349,0.00019899,2]
[362377076,1748230242187,-420.0,0.00019899,2]
[362377077,1748230242195,-430.56523244,0.00019899,2]
[362377078,1748230242205,-489.35720548,0.00019899,2]
[362377079,1748230242215,-158.01,0.00019899,2]
[362377080,1748230242225,-420.0,0.00019899,2]
[362377081,1748230242234,-473.99500796,0.00019899,2]
[362377082,1748230242244,-434.62723956,0.00019899,2]
[362377083,1748230242255,-207.17301417,0.00019899,2]
[362377084,1748230242264,-444.84284106,0.00019899,2]
[362377085,1748230242274,-425.51386991,0.00019899,2]
[362377086,1748230242284,-420.0,0.00019899,2]
[362377087,1748230242294,-460.00411197,0.00019899,2]
[362377088,1748230242304,-420.0,0.00019899,2]
[362377089,1748230242315,-420.0,0.00019899,2]
[362377090,1748230242324,-420.0,0.00019899,2]
[362377091,1748230242335,-420.0,0.00019899,2]
[362377092,1748230242345,-420.0,0.00019899,2]
[362377093,1748230242356,-447.64206831,0.00019899,2]
[362377094,1748230242367,-479.7448159,0.00019899,2]
[362377095,1748230242376,-420.0,0.00019899,2]
[362377096,1748230242388,-445.91855437,0.00019899,2]
[362377097,1748230242398,-420.0,0.00019899,2]
[362377098,1748230242407,-420.0,0.00019899,2]
[362377099,1748230242417,-420.0,0.00019899,2]
[362377100,1748230242427,-420.0,0.00019899,2]
[362377101,1748230242436,-420.0,0.00019899,2]
[362377102,1748230242446,-420.0,0.00019899,2]
[362377103,1748230242455,-420.0,0.00019899,2]
[362377104,1748230242467,-550.45665382,0.00019899,2]
[362377105,1748230242477,-20000.0,0.000199,2]
[362377106,1748230242487,-5800.0,0.000199,2]
[362377107,1748230242496,-1721.38565866,0.000199,3]
[362377108,1748230242506,-434.12117878,0.000199,2]
[362377109,1748230242515,-434.12117878,0.000199,2]
[362377110,1748230242524,-434.12117878,0.000199,2]
[362377111,1748230242533,-434.12117878,0.000199,2]
[362377112,1748230242542,-200.0,0.000199,7]
[362377113,1748230242552,-7662.24965481,0.000199,2]
[362377114,1748230242561,-7162.52415837,0.000199,7]
[362377115,1748230242571,-166.95834042,0.000199,2]
[362377116,1748230242581,-275.29544304,0.000199,2]
[362377117,1748230242590,-324.73591646,0.000199,2]
[362377118,1748230242600,-5800.0,0.000199,2]
[362377119,1748230242609,-12500.0,0.000199,2]
[362377120,1748230242619,-513.74738217,0.000199,2]
[362377121,1748230242628,-152.60986817,0.00019918,2]
[362377122,1748230242638,-150.0,0.00019918,2]
[362377123,1748230242648,-150.0,0.00019946,2]
[362377124,1748230242657,-491.14,0.00019963,2]
[362377125,1748230242667,-494.27,0.00019963,2]
[362377126,1748230242677,-492.23,0.00019963,2]
[362377127,1748230242688,-498.78,0.00019963,2]
[362377128,1748230242697,-495.76,0.00019963,2]
[362377129,1748230242706,-500.0,0.0001997,2]
[362377130,1748230242715,-500.0,0.0001997,2]
[362377131,1748230242724,-500.0,0.0001997,2]
[362377132,1748230242734,-1000.0,0.0001997,2]
[362377133,1748230242743,-501.07281634,0.0001997,2]
[362377134,1748230242753,-1000.0,0.0001997,2]
[362377135,1748230242763,-1000.0,0.0001997,2]
[362377136,1748230242772,-1002.02872275,0.0001997,2]
[362377137,1748230242781,-337.0,0.00019973,2]
[362377138,1748230242791,-500.0,0.00019973,2]
[362377139,1748230242801,-500.0,0.00019973,2]
[362377140,1748230242810,-500.0,0.00019973,2]
[362377141,1748230242820,-500.0,0.00019973,2]
[362377142,1748230242829,-240.90205953,0.00019973,2]
[362377143,1748230242840,-469.99,0.0001998,2]
[362377144,1748230242850,-560.96,0.0001998,2]
[362377145,1748230242859,-470.0,0.0001998,2]
[362377146,1748230242869,-470.0,0.0001998,2]
[362377147,1748230242879,-560.0,0.0001998,2]
[362377148,1748230242889,-4758.06424491,0.0001999,2]
[362377149,1748230242899,-198.80989709,0.0001999,2]
[362377150,1748230242909,-198.80989709,0.0001999,2]
[362377151,1748230242918,-198.80989709,0.0001999,2]
[362377152,1748230242928,-410.41551222,0.00019994,2]
[362377153,1748230242937,-436.11554935,0.00019994,2]
[362377154,1748230242946,-441.49274643,0.00019994,2]
[362377155,1748230242955,-426.42833541,0.00019994,2]
[362377156,1748230242965,-440.37315714,0.00019994,2]
[362377157,1748230242975,-421.28093935,0.00019994,2]
[362377158,1748230242986,-449.40220288,0.00019994,2]
[362377159,1748230242995,-549.22753772,0.00019994,2]
[362377160,1748230243005,-286.16321821,0.00019994,2]
[362377161,1748230243014,-550.43935913,0.00019994,2]
[362377162,1748230243023,-424.29509549,0.00019994,2]
[362377163,1748230243033,-434.11054152,0.00019994,2]
[362377164,1748230243042,-223.29537204,0.00019994,2]
[362377165,1748230243052,-521.46,0.00019994,2]
[362377166,1748230243061,-452.27243887,0.00019994,2]
[362377167,1748230243070,-444.54840011,0.00019994,2]
[362377168,1748230243079,-465.57412338,0.00019994,2]
[362377170,1748230243089,-420.0,0.00019994,2]
[362377172,1748230243098,-500.0,0.00019994,2]
[362377174,1748230243107,-431.47884439,0.00019994,2]
[362377175,1748230243116,-327.03983668,0.00019994,2]
[362377176,1748230243125,-420.0,0.00019994,2]
[362377177,1748230243134,-438.07774517,0.00019994,2]
[362377178,1748230243142,-370.26533746,0.00019994,2]
[362377179,1748230243151,-420.0,0.00019994,2]
[362377180,1748230243160,-420.0,0.00019994,2]
[362377181,1748230243170,-552.13478098,0.00019994,2]
[362377182,1748230243179,-450.10984163,0.00019994,2]
[362377183,1748230243188,-420.0,0.00019994,2]
[362377184,1748230243197,-181.52343819,0.00019994,2]
[362377185,1748230243206,-471.184771,0.00019994,2]
[362377186,1748230243215,-420.0,0.00019994,2]
[362377187,1748230243225,-163.61241614,0.00019994,2]
[362377188,1748230243233,-420.0,0.00019994,2]
[362377189,1748230243242,-442.58001771,0.00019994,2]
[362377190,1748230243251,-420.0,0.00019994,2]
[362377192,1748230243260,-287.20770338,0.00019994,2]
[362377194,1748230243269,-420.0,0.00019994,2]
[362377196,1748230243278,-420.0,0.00019994,2]
[362377198,1748230243287,-431.66837325,0.00019994,2]
[362377200,1748230243296,-420.0,0.00019994,2]
[362377202,1748230243305,-420.0,0.00019994,2]
[362377204,1748230243313,-420.0,0.00019994,2]
[362377206,1748230243322,-239.85505777,0.00019994,2]
[362377207,1748230243331,-420.0,0.00019994,2]
[362377208,1748230243340,-270.66632048,0.00019994,2]
[362377209,1748230243349,-319.19497472,0.00019994,2]
[362377210,1748230243358,-420.0,0.00019994,2]
[362377211,1748230243366,-420.0,0.00019994,2]
[362377212,1748230243375,-440.34767498,0.00019994,2]
[362377213,1748230243384,-420.0,0.00019994,2]
[362377214,1748230243394,-260.43541268,0.00019994,2]
[362377215,1748230243405,-420.64772461,0.00019994,2]
[362377216,1748230243413,-420.0,0.00019994,2]
[362377217,1748230243422,-420.0,0.00019994,2]
[362377218,1748230243432,-420.0,0.00019994,2]
[362377219,1748230243441,-321.1046068,0.00019994,2]
[362377220,1748230243450,-420.0,0.00019994,2]
[362377221,1748230243459,-420.0,0.00019994,2]
[362377222,1748230243467,-453.98270963,0.00019994,2]
[362377223,1748230243476,-465.9341198,0.00019994,2]
[362377224,1748230243485,-542.81208296,0.00019994,2]
[362377225,1748230243494,-420.0,0.00019994,2]
[362377226,1748230243503,-297.67491108,0.00019994,2]
[362377227,1748230243512,-550.37383317,0.00019994,2]
[362377228,1748230243522,-420.0,0.00019994,2]
[362377229,1748230243532,-420.0,0.00019994,2]
[362377230,1748230243541,-412.81718761,0.00019994,2]
[362377231,1748230243550,-443.44301875,0.00019994,2]
[362377232,1748230243559,-384.55826795,0.00019994,2]
[362377233,1748230243568,-500.0,0.00019994,2]
[362377234,1748230243578,-430.41127421,0.00019994,2]
[362377235,1748230243587,-448.72233215,0.00019994,2]
[362377236,1748230243596,-420.0,0.00019994,2]
[362377237,1748230243605,-420.0,0.00019994,2]
[362377238,1748230243614,-162.14689788,0.00019994,2]
[362377239,1748230243623,-466.24888782,0.00019994,2]
[362377240,1748230243632,-480.32610215,0.00019994,2]
[362377241,1748230243642,-420.0,0.00019994,2]
[362377242,1748230243651,-420.0,0.00019994,2]
[362377243,1748230243660,-193.61403849,0.00019994,2]
[362377244,1748230243669,-501.2371456,0.00019994,2]
[362377245,1748230243678,-420.0,0.00019994,2]
[362377246,1748230243687,-303.63775609,0.00019994,2]
[362377247,1748230243696,-383.5579359,0.00019994,2]
[362377248,1748230243705,-420.0,0.00019994,2]
[362377249,1748230243714,-420.0,0.00019994,2]
[362377250,1748230243723,-426.83256011,0.00019994,2]
[362377251,1748230243732,-426.10380972,0.00019994,2]
[362377252,1748230243741,-424.45784957,0.00019994,2]
[362377253,1748230243751,-420.0,0.00019994,2]
[362377254,1748230243760,-420.0,0.00019994,2]
[362377255,1748230243770,-420.0,0.00019994,2]
[362377256,1748230243781,-428.62260274,0.00019994,2]
[362377257,1748230243791,-420.0,0.00019994,2]
[362377259,1748230243801,-444.53,0.00019994,2]
[362377260,1748230243812,-420.0,0.00019994,2]
[362377261,1748230243821,-420.0,0.00019994,2]
[362377262,1748230243830,-420.0,0.00019994,2]
[362377263,1748230243839,-420.0,0.00019994,2]
[362377264,1748230243848,-420.0,0.00019994,2]
[362377265,1748230243857,-420.0,0.00019994,2]
[362377266,1748230243866,-420.0,0.00019994,2]
[362377267,1748230243875,-420.0,0.00019994,2]
[362377269,1748230243884,-420.0,0.00019994,2]
[362377271,1748230243893,-420.0,0.00019994,2]
[362377273,1748230243903,-420.0,0.00019994,2]
[362377275,1748230243912,-165.10294297,0.00019994,2]
[362377276,1748230243923,-13855.7674335,0.00019995,2]
[362377277,1748230243933,-181063.3962859,0.00019995,2]
[362377278,1748230243942,-3697.0790878,0.00019995,2]
[362377279,1748230243952,-15734.8891538,0.00019995,2]
[362377280,1748230243963,-4818.8000977,0.00019995,2]
[362377281,1748230243974,-224.1237207,0.00019999,2]
[362377282,1748230243983,-500.0,0.00019999,2]
[362377283,1748230243994,-506.13191197,0.00019999,2]
[362377284,1748230244005,-420.0,0.00019999,2]
[362377285,1748230244015,-218.78,0.00019999,2]
[362377286,1748230244025,-420.0,0.00019999,2]
[362377287,1748230244034,-152.33990979,0.00019999,2]
[362377288,1748230244043,-151.58001089,0.00019999,2]
[362377289,1748230244052,-420.0,0.00019999,2]
[362377290,1748230244061,-420.0,0.00019999,2]
[362377291,1748230244071,-180.15499721,0.00019999,2]
[362377292,1748230244081,-180.45,0.00019999,2]
[362377293,1748230244090,-422.98,0.00019999,2]
[362377294,1748230244100,-500.0,0.00019999,2]
[362377295,1748230244110,-420.0,0.00019999,2]
[362377296,1748230244119,-420.0,0.00019999,2]
[362377297,1748230244130,-420.0,0.00019999,2]
[362377298,1748230244142,-420.0,0.00019999,2]
[362377299,1748230244154,-171.58190414,0.00019999,2]
[362377300,1748230244164,-442.11336887,0.00019999,2]
[362377301,1748230244173,-420.0,0.00019999,2]
[362377302,1748230244183,-420.0,0.00019999,2]
[362377303,1748230244192,-492.32,0.00019999,2]
[362377304,1748230244203,-493.34871102,0.00019999,2]
[362377305,1748230244215,-462.87748787,0.00019999,2]
[362377306,1748230244224,-469.9902195,0.00019999,2]
[362377307,1748230244235,-472.25593893,0.00019999,2]
[362377308,1748230244246,-420.0,0.00019999,2]
[362377309,1748230244256,-469.38024664,0.00019999,2]
[362377310,1748230244266,-420.0,0.00019999,2]
[362377311,1748230244275,-457.79451109,0.00019999,2]
[362377312,1748230244288,-451.75273861,0.00019999,2]
[362377313,1748230244299,-420.0,0.00019999,2]
[362377314,1748230244309,-420.0,0.00019999,2]
[362377315,1748230244320,-217.55134112,0.00019999,2]
[362377316,1748230244333,-20000.0,0.00019999,2]
[362377317,1748230244343,-102614.60579586,0.0002,2]
[362377318,1748230244353,-800.0,0.0002,2]
[362377319,1748230244362,-633.0,0.0002,2]
[362377320,1748230244373,-587.0,0.0002,2]
[362377321,1748230244384,-1463.0,0.0002,2]
[362377322,1748230244395,-923.0,0.0002,2]
[362377323,1748230244407,-555.0,0.0002,2]
[362377324,1748230244576,-1153.0,0.0002,2]
[362377325,1748230244587,-6920.0,0.0002,2]
[362377326,1748230244598,-1312.0,0.0002,2]
[362377327,1748230244609,-154.0,0.0002,2]
[362377328,1748230244621,-4059.0,0.0002,2]
[362377329,1748230244631,-885.255,0.0002,2]
[362377330,1748230244641,-4000.0,0.0002,4]
[362377331,1748230244652,-4000.0,0.0002,4]
[362377332,1748230244662,-4000.0,0.0002,4]
[362377333,1748230244672,-4000.0,0.0002,4]
[362377334,1748230244683,-4000.0,0.0002,4]
[362377335,1748230244694,-4000.0,0.0002,4]
[362377336,1748230244704,-244493.42447251,0.0002,2]
[362377337,1748230244722,-17397.506033,0.0002,2]
[362377338,1748230244736,-1576.13646902,0.0002,2]
[362377339,1748230244747,-18312.90469127,0.0002,2]
[362377340,1748230244759,-38353.28475933,0.0002,2]
[362377341,1748230244772,-57788.61328925,0.0002,2]
[362377342,1748230244785,-1165.45597606,0.0002,2]
[362377343,1748230244951,-16918.16869365,0.00019887,2]
[362377344,1748230244961,-18145.47347025,0.0002,2]
[362377347,1748230246283,-423.83892299,0.00019779,2]
[362377348,1748230246292,-421.30392601,0.00019779,2]
[362377349,1748230246302,-428.10438351,0.00019779,2]
[362377350,1748230246312,-1602.97346709,0.00019798,2]
[362377395,1748230887542,203.82,0.00025409,120]
[362377396,1748230909884,180.89,0.00014778,2]
[362377397,1748230986572,382.3,0.00013699,2]
[362377398,1748231023330,-160.0,0.000175,2]
[362377399,1748231023351,-200.0,0.0001799,2]
[362377400,1748231023373,-200.0,0.00018336,2]
[362377401,1748231023394,-203.82,0.00018479,2]
[362377402,1748231023415,-328.55,0.00018494,2]
[362377403,1748231023436,-2751.0,0.00018527,2]
[362377404,1748231023457,-336.07547552,0.0001858,2]
[362377405,1748231023478,-208.0,0.0001868,2]
[362377406,1748231023498,-204.72,0.00018755,2]
[362377407,1748231023520,-200.0,0.00018792,2]
[362377408,1748231023540,-250.0,0.0001883,2]
[362377409,1748231023561,-250.0,0.00018941,2]
[362377410,1748231023582,-207.4,0.00019042,2]
[362377411,1748231023604,-500.0,0.00019053,2]
[362377412,1748231023627,-236.11137047,0.00019053,2]
[362377413,1748231023650,-561.49303127,0.00019053,2]
[362377414,1748231023671,-1200.0,0.00019053,2]
[362377415,1748231023694,-300.0,0.00019053,2]
[362377416,1748231023718,-23900.0,0.00019054,2]
[362377417,1748231023741,-336.07547552,0.00019088,2]
[362377418,1748231023763,-500.0,0.00019164,2]
[362377419,1748231023785,-500.0,0.00019164,2]
[362377420,1748231023806,-155.334875,0.00019178,2]
[362377421,1748231023828,-155.334875,0.00019178,2]
[362377422,1748231023852,-169.13,0.00019178,2]
[362377423,1748231023874,-300.0,0.000192,7]
[362377424,1748231023896,-200.0,0.0001925,2]
[362377425,1748231023921,-1000.0,0.00019266,2]
[362377426,1748231023943,-600.0,0.000193,7]
[362377427,1748231023967,-250.0,0.00019359,2]
[362377428,1748231023992,-900.0,0.000194,7]
[362377429,1748231024015,-1200.0,0.000195,7]
[362377430,1748231024035,-336.07547552,0.00019595,2]
[362377431,1748231024273,-521.625724,0.00019599,2]
[362377432,1748231024297,-1600.0,0.000196,7]
[362377433,1748231024318,-409.63482298,0.00019679,2]
[362377434,1748231024338,-1000.0,0.0001968,2]
[362377435,1748231024358,-22222.0,0.00019685,4]
[362377436,1748231024378,-628.10468642,0.00019695,2]
[362377437,1748231024399,-300.0,0.000197,7]
[362377438,1748231024422,-16562.67696381,0.000197,2]
[362377439,1748231024442,-183.86715232,0.000197,2]
[362377440,1748231024462,-409.63482295,0.00019711,2]
[362377441,1748231024483,-1000.0,0.00019711,2]
[362377442,1748231024503,-16562.67696374,0.00019722,2]
[362377443,1748231024523,-183.86715225,0.00019722,2]
[362377444,1748231024544,-155.334875,0.00019726,2]
[362377445,1748231024564,-397.92,0.00019726,2]
[362377446,1748231024584,-409.63482295,0.00019742,2]
[362377447,1748231024605,-16562.67696374,0.00019744,2]
[362377448,1748231024625,-183.86715225,0.00019744,2]
[362377449,1748231024646,-16562.67696374,0.00019767,2]
[362377450,1748231024667,-183.86715225,0.00019767,2]
[362377451,1748231024687,-151.0,0.00019767,2]
[362377452,1748231024708,-1199.20597015,0.00019767,2]
[362377453,1748231024729,-668.65185757,0.00019767,2]
[362377454,1748231024748,-668.65185757,0.00019767,2]
[362377455,1748231024768,-500.0,0.00019773,2]
[362377456,1748231024789,-500.0,0.00019773,2]
[362377457,1748231024808,-500.0,0.00019773,2]
[362377458,1748231024828,-500.0,0.00019773,2]
[362377459,1748231024852,-162.10849317,0.00019773,2]
[362377460,1748231024871,-501.70816719,0.00019773,2]
[362377461,1748231024893,-500.0,0.00019773,2]
[362377462,1748231024915,-409.63482295,0.00019774,2]
[362377463,1748231024940,-4052.23,0.00019776,2]
[362377464,1748231024962,-539.8411637,0.00019778,2]
[362377465,1748231024984,-235.35152642,0.00019778,2]
[362377466,1748231025009,-500.0,0.00019778,2]
[362377467,1748231025033,-646.49380558,0.00019778,2]
[362377468,1748231025054,-264.10090346,0.00019778,2]
[362377469,1748231025075,-388.94444492,0.00019778,2]
[362377470,1748231025097,-500.0,0.00019778,2]
[362377471,1748231025119,-500.0,0.00019778,2]
[362377472,1748231025141,-500.0,0.00019778,2]
[362377473,1748231025165,-500.0,0.00019778,2]
[362377474,1748231025187,-500.0,0.00019778,2]
[362377475,1748231025210,-500.0,0.00019778,2]
[362377476,1748231025232,-500.0,0.00019778,2]
[362377477,1748231025255,-500.0,0.00019778,2]
[362377478,1748231025276,-500.0,0.00019778,2]
[362377479,1748231025298,-500.0,0.00019778,2]
[362377480,1748231025320,-500.0,0.00019778,2]
[362377481,1748231025341,-164.74606849,0.00019778,2]
[362377482,1748231025363,-500.0,0.00019778,2]
[362377483,1748231025384,-500.0,0.00019778,2]
[362377484,1748231025407,-500.0,0.00019778,2]
[362377485,1748231025428,-500.0,0.00019778,2]
[362377486,1748231025450,-500.0,0.00019778,2]
[362377487,1748231025471,-202.98437242,0.00019778,2]
[362377488,1748231025492,-401.58469843,0.00019779,2]
[362377489,1748231025514,-420.0,0.00019779,2]
[362377490,1748231025536,-423.46964405,0.00019779,2]
[362377491,1748231025557,-308.97121459,0.00019779,2]
[362377492,1748231025581,-425.19964124,0.00019779,2]
[362377493,1748231025603,-561.42781335,0.00019779,2]
[362377494,1748231025624,-420.0,0.00019779,2]
[362377495,1748231025644,-420.0,0.00019779,2]
[362377496,1748231025666,-420.0,0.00019779,2]
[362377497,1748231025687,-521.46,0.00019779,2]
[362377498,1748231025708,-452.27243887,0.00019779,2]
[362377499,1748231025728,-465.57412338,0.00019779,2]
[362377500,1748231025749,-420.0,0.00019779,2]
[362377501,1748231025771,-500.0,0.00019779,2]
[362377502,1748231025795,-444.54840011,0.00019779,2]
[362377503,1748231025817,-431.47884439,0.00019779,2]
[362377504,1748231025838,-420.0,0.00019779,2]
[362377505,1748231025864,-560.98886391,0.00019779,2]
[362377506,1748231025888,-420.0,0.00019779,2]
[362377507,1748231025910,-442.8499113,0.00019779,2]
[362377508,1748231025932,-423.86125299,0.00019779,2]
[362377509,1748231025955,-439.92031317,0.00019779,2]
[362377510,1748231025977,-436.59885488,0.00019779,2]
[362377511,1748231025998,-420.0,0.00019779,2]
[362377512,1748231026018,-438.07774517,0.00019779,2]
[362377513,1748231026040,-425.45120762,0.00019779,2]
[362377514,1748231026061,-420.0,0.00019779,2]
[362377515,1748231026083,-420.0,0.00019779,2]
[362377516,1748231026104,-432.89622876,0.00019779,2]
[362377517,1748231026124,-424.61046678,0.00019779,2]
[362377518,1748231026144,-434.73625125,0.00019779,2]
[362377519,1748231026165,-327.03983668,0.00019779,2]
[362377520,1748231026187,-426.74252555,0.00019779,2]
[362377521,1748231026210,-431.29373785,0.00019779,2]
[362377522,1748231026232,-420.0,0.00019779,2]
[362377523,1748231026254,-423.76245241,0.00019779,2]
[362377524,1748231026278,-430.14057066,0.00019779,2]
[362377525,1748231026300,-449.78270828,0.00019779,2]
[362377526,1748231026324,-420.0,0.00019779,2]
[362377527,1748231026347,-427.84678109,0.00019779,2]
[362377528,1748231026371,-420.0,0.00019779,2]
[362377529,1748231026393,-420.0,0.00019779,2]
[362377530,1748231026413,-1017.04680744,0.00019779,2]
[362377531,1748231026434,-428.32725676,0.00019779,2]
[362377532,1748231026455,-427.71828082,0.00019779,2]
[362377533,1748231026477,-439.74849247,0.00019779,2]
[362377534,1748231026499,-420.0,0.00019779,2]
[362377535,1748231026522,-429.35333574,0.00019779,2]
[362377536,1748231026544,-433.58443817,0.00019779,2]
[362377537,1748231026564,-443.484211,0.00019779,2]
[362377538,1748231026584,-432.25644555,0.00019779,2]
[362377539,1748231026606,-433.8825438,0.00019779,2]
[362377540,1748231026627,-420.0,0.00019779,2]
[362377541,1748231026648,-434.2496025,0.00019779,2]
[362377542,1748231026668,-427.47037807,0.00019779,2]
[362377543,1748231026692,-420.0,0.00019779,2]
[362377544,1748231026714,-212.13146808,0.00019779,2]
[362377545,1748231026738,-432.43964487,0.00019779,2]
[362377546,1748231026760,-224.36871738,0.00019779,2]
[362377547,1748231026783,-428.07640647,0.00019779,2]
[362377548,1748231026807,-427.65032647,0.00019779,2]
[362377549,1748231026830,-420.0,0.00019779,2]
[362377550,1748231026857,-434.72227145,0.00019779,2]
[362377551,1748231026880,-420.0,0.00019779,2]
[362377552,1748231026902,-420.0,0.00019779,2]
[362377553,1748231026923,-420.0,0.00019779,2]
[362377554,1748231026945,-420.0,0.00019779,2]
[362377555,1748231026967,-392.94,0.00019779,2]
[362377556,1748231026990,-420.0,0.00019779,2]
[362377557,1748231027011,-428.44910997,0.00019779,2]
[362377558,1748231027032,-420.0,0.00019779,2]
[362377559,1748231027057,-427.39629164,0.00019779,2]
[362377560,1748231027080,-420.0,0.00019779,2]
[362377561,1748231027100,-420.0,0.00019779,2]
[362377562,1748231027120,-409.31441497,0.00019779,2]
[362377563,1748231027141,-420.0,0.00019779,2]
[362377564,1748231027163,-420.0,0.00019779,2]
[362377565,1748231027185,-420.0,0.00019779,2]
[362377566,1748231027205,-420.0,0.00019779,2]
[362377567,1748231027225,-420.0,0.00019779,2]
[362377568,1748231027247,-432.2239299,0.00019779,2]
[362377569,1748231027270,-424.86482799,0.00019779,2]
[362377570,1748231027293,-420.0,0.00019779,2]
[362377571,1748231027314,-420.0,0.00019779,2]